bitfinex-derivatives/quotes_BTCF0:USTF0_20240917
["timestamp","ask_amount","ask_price","bid_price","bid_amount"]
[1726604212239,0.341,60095.0,60092.0,0.14116]
[1726604212440,0.424181,60095.0,60092.0,0.14116]
[1726604213446,0.424181,60095.0,60092.0,0.14016]
[1726604213641,0.083181,60095.0,60094.0,0.13916]
[1726604214037,0.3608,60097.0,60094.0,0.13916]
[1726604214236,0.00437883,60097.0,60096.0,0.13916]
[1726604214438,0.19,60098.0,60096.0,0.13916]
[1726604214646,0.19,60098.0,60096.0,0.50896389]
[1726604214940,0.19,60098.0,60097.0,0.13916]
[1726604215345,0.19,60098.0,60092.0,0.002]
[1726604215346,0.5508,60098.0,60092.0,0.002]
[1726604215545,0.19,60093.0,60092.0,0.002]
[1726604215941,0.19,60093.0,60092.0,0.14016]
[1726604216342,0.19,60093.0,60092.0,0.13916]
[1726604216641,0.19,60093.0,60092.0,0.14016]
[1726604217043,0.19,60093.0,60092.0,0.14116]
[1726604218050,0.19420804,60093.0,60092.0,0.14116]
[1726604223455,0.19420804,60093.0,60092.0,0.14005759]
[1726604226257,0.19420804,60093.0,60092.0,0.002]
[1726604226455,0.27739104,60093.0,60092.0,0.002]
[1726604229556,0.083186,60091.0,60090.0,0.00249623]
[1726604229752,0.443986,60091.0,60090.0,1e-08]
[1726604230260,0.943226,60091.0,60090.0,1e-08]
[1726604231651,0.943226,60091.0,60073.0,0.444009]
[1726604231652,0.86004,60091.0,60073.0,0.3608]
[1726604231957,0.083204,60078.0,60073.0,0.3608]
[1726604232154,0.083204,60078.0,60077.0,0.14055399]
[1726604232155,0.273204,60078.0,60077.0,0.14055399]
[1726604232356,0.083204,60078.0,60077.0,0.14055399]
[1726604232662,0.272204,60078.0,60077.0,0.0024964]
[1726604233456,0.19,60078.0,60077.0,0.0024964]
[1726604233652,0.19,60078.0,60077.0,0.0034964]
[1726604235150,0.19,60078.0,60077.0,0.0044964]
[1726604235959,0.00421174,60078.0,60077.0,0.65151788]
[1726604236164,0.19,60079.0,60077.0,0.65151788]
[1726604236368,0.19,60079.0,60077.0,0.0044964]
[1726604236757,0.083204,60078.0,60077.0,0.0044964]
[1726604236958,0.729004,60078.0,60077.0,0.0044964]
[1726604238160,0.19,60079.0,60077.0,0.0044964]
[1726604238359,0.19,60079.0,60077.0,0.0034964]
[1726604238561,0.194,60079.0,60077.0,0.0044964]
[1726604238760,0.194,60079.0,60078.0,0.13805759]
[1726604239171,0.19,60079.0,60078.0,0.13805759]
[1726604239661,0.195,60079.0,60078.0,0.13805759]
[1726604240259,0.195,60079.0,60077.0,0.0034964]
[1726604240454,0.195,60079.0,60077.0,0.14155399]
[1726604241556,0.195,60079.0,60078.0,0.13905759]
[1726604241761,0.19,60079.0,60078.0,0.13905759]
[1726604241955,0.194,60079.0,60078.0,0.14005759]
[1726604242357,0.19,60079.0,60078.0,0.13805759]
[1726604242562,0.194,60079.0,60078.0,0.13805759]
[1726604243060,0.194,60079.0,60078.0,0.13905759]
[1726604243262,0.194,60079.0,60078.0,0.14005759]
[1726604243461,0.19,60079.0,60078.0,0.13905759]
[1726604243665,0.194,60079.0,60078.0,0.14005759]
[1726604255496,0.004,60079.0,60078.0,0.64902148]
[1726604255685,0.004,60079.0,60078.0,1.33282148]
[1726604256590,0.00424151,60082.0,60081.0,0.0832]
[1726604256791,0.19249658,60088.0,60083.0,0.083197]
[1726604256994,0.19249658,60088.0,60087.0,0.13805759]
[1726604257389,0.19249658,60088.0,60087.0,0.64702148]
[1726604257592,0.00249658,60088.0,60087.0,0.64702148]
[1726604257985,0.00249658,60088.0,60087.0,0.73021248]
[1726604259292,0.001,60088.0,60087.0,0.31614851]
[1726604259499,0.33691201,60103.0,60098.0,0.13705759]
[1726604259696,0.19,60101.0,60094.0,0.00249569]
[1726604259997,0.24844706,60100.0,60095.0,0.3228]
[1726604260389,0.24844706,60100.0,60099.0,0.13705759]
[1726604260790,0.24844706,60100.0,60099.0,0.2612061]
[1726604261887,0.24844706,60100.0,60099.0,0.2622061]
[1726604262890,0.24844706,60100.0,60099.0,0.2632061]
[1726604263292,0.24844706,60100.0,60099.0,0.13905759]
[1726604265897,0.24844706,60100.0,60099.0,0.2632061]
[1726604266104,0.00727893,60104.0,60102.0,0.08317]
[1726604266105,0.19478247,60104.0,60102.0,0.08317]
[1726604266292,0.00478247,60104.0,60103.0,0.13705759]
[1726604266595,0.00249563,60110.0,60103.0,0.22022659]
[1726604266596,0.19249563,60110.0,60103.0,0.22022659]
[1726604266905,0.19249563,60110.0,60109.0,0.13705759]
[1726604267400,0.44276861,60110.0,60109.0,0.13705759]
[1726604267994,0.44276861,60110.0,60109.0,0.13805759]
[1726604268194,0.44759205,60110.0,60109.0,0.13805759]
[1726604269007,0.44759205,60110.0,60109.0,0.2632061]
[1726604270604,0.25759205,60110.0,60109.0,0.6240061]
[1726604270797,0.00731907,60110.0,60109.0,0.6240061]
[1726604271300,0.00731907,60110.0,60109.0,0.9405061]
[1726604271699,0.00731907,60110.0,60109.0,1.0236671]
[1726604272003,0.3608,60117.0,60109.0,1.0236671]
[1726604272204,0.3608,60117.0,60116.0,0.13705759]
[1726604272502,0.00494735,60117.0,60116.0,0.6220061]
[1726604272806,0.00249538,60119.0,60116.0,0.6220061]
[1726604273006,0.00249538,60119.0,60118.0,0.13705759]
[1726604273305,0.00733055,60119.0,60118.0,0.13705759]
[1726604273511,0.3608,60129.0,60124.0,0.083139]
[1726604273712,0.083074,60172.0,60148.0,0.3608]
[1726604273898,0.08305,60189.0,60165.0,0.3608]
[1726604273899,0.3608,60182.0,60165.0,0.3608]
[1726604274211,0.00112001,60188.0,60180.0,0.3608]
[1726604274212,0.24886248,60181.0,60180.0,0.3608]
[1726604274504,0.19,60181.0,60173.0,0.3608]
[1726604274706,0.19,60174.0,60164.0,0.33076242]
[1726604274908,0.19,60165.0,60159.0,0.36329339]
[1726604275098,0.19,60160.0,60159.0,0.36329339]
[1726604275400,0.43818126,60160.0,60159.0,0.36329339]
[1726604275901,0.24818126,60160.0,60159.0,0.36329339]
[1726604276103,0.19,60165.0,60159.0,0.36329339]
[1726604276298,0.19,60165.0,60164.0,0.3608]
[1726604276697,0.43862291,60165.0,60164.0,0.3618]
[1726604277310,0.43862291,60165.0,60164.0,0.3608]
[1726604277501,0.43862291,60165.0,60164.0,0.3618]
[1726604278093,0.93726291,60165.0,60159.0,0.36429339]
[1726604278295,0.19,60160.0,60150.0,0.3608]
[1726604278500,0.19,60151.0,60150.0,0.3608]
[1726604278896,0.24934973,60151.0,60150.0,0.3608]
[1726604279201,0.19,60151.0,60150.0,0.3608]
[1726604279600,0.43900971,60151.0,60150.0,0.3608]
[1726604279807,0.43900971,60151.0,60150.0,0.3618]
[1726604280297,0.44384807,60151.0,60150.0,0.3618]
[1726604280501,0.44384807,60151.0,60150.0,0.3628]
[1726604281711,0.44484807,60151.0,60150.0,0.002]
[1726604282313,1.54460807,60151.0,60150.0,0.002]
[1726604284710,0.19,60145.0,60144.0,0.36329373]
[1726604285011,0.43909076,60145.0,60144.0,0.36329373]
[1726604286101,0.44009076,60145.0,60144.0,0.36429373]
[1726604286303,0.44009076,60145.0,60144.0,0.36529373]
[1726604286710,0.44009076,60145.0,60138.0,0.3608]
[1726604286913,0.44009076,60145.0,60134.0,0.00249436]
[1726604286914,0.19,60139.0,60134.0,0.00249436]
[1726604287226,0.19,60135.0,60134.0,0.00249436]
[1726604287712,0.43991696,60135.0,60134.0,0.00249436]
[1726604288506,0.43991696,60135.0,60134.0,0.00349436]
[1726604288807,0.43991696,60135.0,60134.0,0.00249436]
[1726604289010,0.24991696,60135.0,60134.0,0.00349436]
[1726604289204,0.43991696,60135.0,60134.0,0.00349436]
[1726604289514,0.19,60135.0,60134.0,0.00349436]
[1726604289716,0.44554977,60135.0,60134.0,0.00349436]
[1726604293417,0.00249389,60159.0,60149.0,0.083104]
[1726604293605,0.00249389,60159.0,60153.0,0.3608]
[1726604293606,0.19,60154.0,60153.0,0.3608]
[1726604293806,0.19,60154.0,60147.0,0.00249386]
[1726604294006,0.19,60154.0,60147.0,0.11729427]
[1726604294519,0.19,60154.0,60153.0,0.3608]
[1726604294712,0.14841122,60154.0,60153.0,0.3608]
[1726604294914,0.14841122,60154.0,60153.0,0.47560041]
[1726604295409,0.09018722,60154.0,60153.0,0.47560041]
[1726604295719,0.19,60158.0,60156.0,0.083096]
[1726604295914,0.01037983,60159.0,60154.0,0.04974138]
[1726604296219,0.00737983,60159.0,60158.0,0.3608]
[1726604296621,0.00737983,60159.0,60158.0,0.52534179]
[1726604297522,0.00737983,60159.0,60158.0,0.47560041]
[1726604298216,0.00837983,60159.0,60158.0,0.47660041]
[1726604298414,0.29,60165.0,60158.0,0.47660041]
[1726604298619,0.00084,60178.0,60164.0,0.3608]
[1726604298916,0.3208,60190.0,60177.0,0.3608]
[1726604298917,0.29,60185.0,60177.0,0.3608]
[1726604299120,0.29,60185.0,60182.0,0.04944734]
[1726604299322,0.29,60185.0,60183.0,0.04944734]
[1726604299323,0.25076009,60184.0,60183.0,0.04944734]
[1726604299616,0.25076009,60184.0,60183.0,0.06593718]
[1726604299821,0.00249254,60189.0,60183.0,0.49783759]
[1726604300026,0.00249254,60189.0,60187.0,0.04943403]
[1726604300317,0.00249254,60189.0,60185.0,0.06591205]
[1726604300518,0.2490718,60188.0,60186.0,0.06591205]
[1726604300910,0.2490718,60188.0,60187.0,0.06591205]
[1726604301121,0.00249254,60189.0,60187.0,0.3608]
[1726604301317,0.00249254,60189.0,60187.0,0.47560041]
[1726604301925,0.00084,60202.0,60187.0,0.47560041]
[1726604302215,0.25081183,60197.0,60189.0,0.08305]
[1726604302723,0.25081183,60197.0,60186.0,0.002]
[1726604302724,0.29,60192.0,60186.0,0.002]
[1726604302923,0.29,60192.0,60176.0,0.3608]
[1726604302924,0.082061,60182.0,60176.0,0.3608]
[1726604303149,0.29,60177.0,60176.0,0.11480041]
[1726604303422,0.29,60177.0,60164.0,0.3608]
[1726604303423,0.083071,60175.0,60164.0,0.3608]
[1726604303622,0.083071,60174.0,60164.0,0.3608]
[1726604303828,0.33328648,60174.0,60164.0,0.3608]
[1726604304422,0.25021548,60174.0,60164.0,0.3608]
[1726604304821,0.25016716,60175.0,60173.0,0.47809296]
[1726604305013,0.34008403,60176.0,60173.0,0.47809296]
[1726604305218,0.002,60174.0,60173.0,0.47909296]
[1726604305813,0.54085823,60175.0,60173.0,0.47809296]
[1726604306021,0.002,60174.0,60173.0,0.47909296]
[1726604306825,0.002,60174.0,60173.0,0.56216496]
[1726604307123,0.002,60174.0,60173.0,1.66072496]
[1726604307317,0.002,60174.0,60173.0,0.47909296]
[1726604307513,0.002,60174.0,60173.0,0.47809296]
[1726604308118,0.002,60174.0,60173.0,0.47909296]
[1726604309222,0.002,60174.0,60173.0,0.56216496]
[1726604309425,0.002,60174.0,60173.0,0.47909296]
[1726604309622,0.002,60174.0,60173.0,0.36429255]
[1726604309827,0.40691301,60174.0,60173.0,0.00349255]
[1726604310022,0.401971,60174.0,60173.0,0.00349255]
[1726604310428,0.6069,60174.0,60173.0,0.00249255]
[1726604310729,0.36164,60185.0,60173.0,1.21585296]
[1726604310730,0.3608,60185.0,60173.0,1.21585296]
[1726604310930,0.00489663,60185.0,60184.0,0.3608]
[1726604311127,0.24970603,60184.0,60176.0,0.3608]
[1726604311322,0.29,60180.0,60176.0,0.3608]
[1726604311529,0.3608,60183.0,60176.0,0.3608]
[1726604311530,0.29,60177.0,60176.0,0.3608]
[1726604311722,0.373067,60177.0,60176.0,0.3608]
[1726604311924,1.462958,60177.0,60173.0,0.00349255]
[1726604312129,1.361478,60177.0,60173.0,0.00349255]
[1726604312429,0.572958,60177.0,60174.0,0.3608]
[1726604312639,0.29,60175.0,60174.0,0.3608]
[1726604312926,0.32885626,60177.0,60174.0,0.3608]
[1726604313138,0.00479625,60177.0,60174.0,0.47560041]
[1726604313320,0.0024926,60184.0,60174.0,0.47560041]
[1726604313727,0.24917739,60183.0,60174.0,0.47560041]
[1726604314032,0.24917739,60183.0,60174.0,0.55967041]
[1726604314536,0.24917739,60183.0,60174.0,0.55867041]
[1726604315422,0.29,60180.0,60174.0,0.47560041]
[1726604315632,0.00733709,60184.0,60179.0,0.3608]
[1726604315633,0.00484449,60184.0,60179.0,0.3608]
[1726604315818,0.29,60189.0,60180.0,0.3146]
[1726604316020,0.29,60189.0,60184.0,0.3608]
[1726604316325,0.24860934,60188.0,60184.0,0.3608]
[1726604316925,0.24860934,60188.0,60184.0,0.47560041]
[1726604317332,0.00726576,60193.0,60184.0,0.47560041]
[1726604317526,0.00726576,60193.0,60184.0,0.47660041]
[1726604317726,0.24838271,60192.0,60184.0,0.47660041]
[1726604318032,0.24838271,60192.0,60189.0,0.3608]
[1726604318228,0.00477331,60193.0,60192.0,0.083046]
[1726604318423,0.00477331,60193.0,60192.0,0.3608]
[1726604318424,0.7884,60193.0,60192.0,0.3608]
[1726604318730,0.7884,60193.0,60178.0,0.3608]
[1726604318731,0.24958148,60192.0,60178.0,0.3608]
[1726604319039,0.29,60182.0,60178.0,0.3608]
[1726604319339,0.24814586,60181.0,60178.0,0.47560041]
[1726604319532,0.29,60179.0,60178.0,0.47560041]
[1726604319734,0.29,60179.0,60178.0,0.3608]
[1726604319940,0.53814586,60179.0,60174.0,0.5]
[1726604320125,0.3116,60178.0,60174.0,0.5]
[1726604320326,0.3066,60178.0,60174.0,0.5]
[1726604322426,0.0048754,60178.0,60174.0,0.61480041]
[1726604322622,0.00249281,60186.0,60176.0,0.3608]
[1726604322835,0.004,60178.0,60176.0,0.3608]
[1726604323033,0.004,60178.0,60176.0,0.47560041]
[1726604323333,0.29,60179.0,60176.0,0.47560041]
[1726604323539,0.004,60178.0,60176.0,0.47560041]
[1726604324038,0.01390755,60178.0,60176.0,0.47660041]
[1726604324233,0.009,60178.0,60176.0,0.47660041]
[1726604324429,0.009,60178.0,60176.0,0.55966741]
[1726604324636,0.009,60179.0,60176.0,0.55966741]
[1726604325737,0.009,60179.0,60176.0,0.47660041]
[1726604326732,0.59984617,60184.0,60176.0,0.47560041]
[1726604326933,0.004,60178.0,60176.0,0.47660041]
[1726604327835,0.004,60179.0,60176.0,0.47660041]
[1726604328034,0.004,60179.0,60176.0,0.55966841]
[1726604328340,0.004,60178.0,60176.0,0.55966841]
[1726604329948,0.004,60179.0,60176.0,0.55966841]
[1726604330545,0.43977891,60183.0,60176.0,0.55966841]
[1726604330546,0.004,60178.0,60176.0,0.55966841]
[1726604330840,0.004,60178.0,60177.0,0.083067]
[1726604331043,0.004,60179.0,60177.0,0.083067]
[1726604331230,0.004,60179.0,60177.0,0.19786741]
[1726604331636,0.004,60178.0,60177.0,0.19786741]
[1726604333245,0.004,60179.0,60178.0,0.083066]
[1726604333637,0.19,60181.0,60178.0,0.083066]
[1726604333942,0.19,60181.0,60178.0,0.11480041]
[1726604334134,0.67160618,60184.0,60177.0,0.3608]
[1726604334336,0.67160618,60184.0,60174.0,0.5]
[1726604334337,0.68752,60178.0,60174.0,0.5]
[1726604334548,0.6251,60177.0,60174.0,0.5]
[1726604334740,0.083069,60176.0,60174.0,0.5]
[1726604335133,0.24918499,60175.0,60174.0,0.5]
[1726604335536,0.24966157,60176.0,60174.0,0.5]
[1726604335736,0.62602,60177.0,60174.0,0.5]
[1726604335939,0.6251,60177.0,60174.0,0.5]
[1726604336138,0.24966157,60176.0,60174.0,0.5]
[1726604336540,0.005,60175.0,60174.0,0.501]
[1726604336846,0.2537046,60175.0,60174.0,0.501]
[1726604337048,0.2487046,60175.0,60174.0,0.501]
[1726604337449,0.63106001,60177.0,60174.0,0.501]
[1726604337450,0.2487046,60176.0,60174.0,0.501]
[1726604337744,0.005,60175.0,60174.0,0.501]
[1726604338050,0.25430136,60175.0,60174.0,0.501]
[1726604339246,0.24930136,60175.0,60174.0,0.501]
[1726604339649,0.25585265,60176.0,60174.0,0.501]
[1726604339848,0.005,60175.0,60174.0,0.501]
[1726604340348,0.25585265,60175.0,60174.0,0.501]
[1726604340540,0.005,60175.0,60174.0,0.501]
[1726604340750,0.25563783,60175.0,60174.0,0.501]
[1726604340950,0.25563783,60175.0,60174.0,0.69887141]
[1726604340951,0.005,60175.0,60174.0,0.69887141]
[1726604343850,0.00495434,60177.0,60174.0,0.61480041]
[1726604344042,0.19,60182.0,60180.0,0.083062]
[1726604344645,0.19,60182.0,60180.0,0.19786241]
[1726604345052,0.19478942,60182.0,60180.0,0.19786241]
[1726604346148,0.19978942,60182.0,60181.0,0.083061]
[1726604346546,0.19978942,60182.0,60181.0,0.19786141]
[1726604346945,0.00249281,60186.0,60181.0,0.19786141]
[1726604346946,0.00249281,60186.0,60181.0,1.74020241]
[1726604347155,0.3208,60197.0,60181.0,1.74020241]
[1726604347156,0.3208,60197.0,60185.0,0.3608]
[1726604347344,0.19,60201.0,60195.0,0.443842]
[1726604347546,0.24986296,60196.0,60195.0,0.443842]
[1726604347846,0.24986296,60200.0,60195.0,0.11480041]
[1726604348045,0.19488734,60201.0,60195.0,0.11480041]
[1726604348247,0.24986296,60200.0,60195.0,0.11480041]
[1726604348450,0.24986296,60200.0,60199.0,0.083037]
[1726604348744,0.3608,60208.0,60197.0,0.3608]
[1726604348946,0.00732668,60205.0,60203.0,0.083031]
[1726604349148,0.083031,60203.0,60202.0,0.3608]
[1726604349339,0.083031,60203.0,60195.0,0.001]
[1726604349340,0.083036,60200.0,60195.0,0.001]
[1726604349547,0.19,60198.0,60195.0,0.11580041]
[1726604349745,0.19,60198.0,60195.0,0.11480041]
[1726604350142,0.001,60200.0,60195.0,0.19784241]
[1726604350745,0.001,60200.0,60195.0,0.11480041]
[1726604351151,0.19,60198.0,60195.0,0.11480041]
[1726604351444,0.189,60198.0,60195.0,0.11480041]
[1726604351842,0.3608,60201.0,60191.0,0.3608]
[1726604352048,0.19,60192.0,60191.0,0.47560041]
[1726604353053,0.5211258,60192.0,60191.0,0.3608]
[1726604353561,0.5221258,60192.0,60191.0,0.3608]
[1726604353852,0.9374798,60192.0,60191.0,0.3608]
[1726604354158,0.4390798,60192.0,60191.0,0.3608]
[1726604355456,0.4380798,60192.0,60191.0,0.3608]
[1726604355664,0.4410798,60192.0,60191.0,0.3618]
[1726604356355,0.2510798,60192.0,60191.0,0.55964841]
[1726604356544,0.2510798,60192.0,60191.0,0.55864841]
[1726604356744,0.003,60192.0,60191.0,0.55964841]
[1726604357558,0.003,60192.0,60191.0,0.47660041]
[1726604358247,0.002,60192.0,60191.0,0.47660041]
[1726604359354,0.19,60194.0,60191.0,0.47560041]
[1726604359559,0.002,60192.0,60191.0,0.47660041]
[1726604360458,0.002,60192.0,60191.0,0.55964841]
[1726604361254,0.25010144,60193.0,60192.0,0.083046]
[1726604361660,0.002,60194.0,60193.0,0.083045]
[1726604361962,0.19489011,60198.0,60193.0,0.083045]
[1726604362169,0.19489011,60198.0,60193.0,0.19784541]
[1726604362465,0.24889183,60197.0,60193.0,0.19784541]
[1726604362647,0.19,60194.0,60193.0,0.11480041]
[1726604364660,0.192,60194.0,60193.0,0.11580041]
[1726604365254,0.192,60194.0,60193.0,0.19884541]
[1726604366561,0.192,60194.0,60193.0,0.11580041]
[1726604369564,0.002,60194.0,60193.0,0.001]
[1726604369768,1.35046616,60194.0,60185.0,0.3608]
[1726604369955,0.273048,60191.0,60185.0,0.3608]
[1726604370365,0.52311416,60191.0,60185.0,0.3608]
[1726604370966,1.53846616,60191.0,60187.0,0.3608]
[1726604371159,0.19,60188.0,60180.0,0.47560041]
[1726604371361,0.19,60181.0,60180.0,0.47560041]
[1726604371764,0.08554853,60185.0,60180.0,0.3608]
[1726604371961,0.19,60181.0,60180.0,0.3608]
[1726604374554,0.193,60181.0,60180.0,0.3608]
[1726604377364,0.003,60181.0,60180.0,0.3608]
[1726604377565,0.193,60181.0,60180.0,0.3608]
[1726604378581,0.003,60181.0,60180.0,0.3608]
[1726604378958,0.003,60181.0,60180.0,0.47560041]
[1726604379464,0.003,60181.0,60180.0,0.55866341]
[1726604380262,0.003,60181.0,60180.0,0.47560041]
[1726604386474,0.003,60181.0,60180.0,0.55866341]
[1726604387570,0.003,60181.0,60180.0,0.47560041]
[1726604388672,0.003,60181.0,60180.0,0.55866341]
[1726604388977,0.003,60181.0,60180.0,0.47560041]
[1726604393381,0.003,60181.0,60180.0,0.55866341]
[1726604397387,0.0072434,60185.0,60184.0,0.083057]
[1726604398888,0.0102434,60185.0,60184.0,0.083057]
[1726604399382,0.0102434,60185.0,60180.0,0.3608]
[1726604399583,0.19,60182.0,60180.0,0.47560041]
[1726604400081,0.19,60182.0,60181.0,0.083061]
[1726604400481,0.19,60182.0,60181.0,0.19786141]
[1726604401581,0.00475087,60185.0,60184.0,0.249171]
[1726604401788,0.4999,60194.0,60193.0,0.083045]
[1726604402276,0.50479828,60194.0,60193.0,0.19784541]
[1726604404596,0.50779828,60194.0,60193.0,0.19884541]
[1726604405875,0.19789828,60194.0,60193.0,0.28189041]
[1726604406093,0.00789828,60194.0,60193.0,0.28189041]
[1726604406293,0.00789828,60194.0,60193.0,1.05333541]
[1726604406876,0.19,60207.0,60193.0,1.05333541]
[1726604406877,0.19,60207.0,60193.0,0.873045]
[1726604407195,0.24961539,60206.0,60205.0,0.083028]
[1726604407578,0.24961539,60208.0,60206.0,0.083027]
[1726604407796,0.19,60207.0,60206.0,0.083027]
[1726604408089,0.44121745,60207.0,60206.0,0.10930797]
[1726604409691,0.44121745,60207.0,60204.0,0.443829]
[1726604409880,0.44121745,60207.0,60204.0,0.55313697]
[1726604410084,0.43821745,60207.0,60206.0,0.083027]
[1726604410385,0.43821745,60207.0,60206.0,0.084027]
[1726604410787,0.43821745,60207.0,60206.0,0.083027]
[1726604411093,0.43821745,60207.0,60206.0,0.19233497]
[1726604411294,0.43821745,60207.0,60206.0,0.19333497]
[1726604413386,0.65206891,60209.0,60208.0,0.083024]
[1726604413387,0.00596891,60209.0,60208.0,0.083024]
[1726604413695,0.00496891,60209.0,60208.0,0.083024]
[1726604413894,0.00249161,60213.0,60208.0,0.10930797]
[1726604414088,0.00249161,60213.0,60210.0,0.083021]
[1726604414288,0.24854869,60212.0,60210.0,0.083021]
[1726604414492,0.24854869,60212.0,60210.0,0.19232897]
[1726604415991,0.083026,60207.0,60192.0,0.00112]
[1726604416204,0.5508,60193.0,60178.0,0.3608]
[1726604416395,0.5508,60193.0,60189.0,0.11180007]
[1726604416396,0.9217,60192.0,60189.0,0.11180007]
[1726604416581,1.17149636,60192.0,60189.0,0.0024921]
[1726604417588,1.17149636,60192.0,60189.0,0.0034921]
[1726604417991,1.17631272,60192.0,60189.0,0.0034921]
[1726604418696,1.17631272,60192.0,60189.0,0.001]
[1726604419693,1.17831272,60192.0,60189.0,0.001]
[1726604420195,0.08305,60190.0,60178.0,0.3608]
[1726604420384,0.08305,60190.0,60189.0,0.001]
[1726604420585,0.08305,60190.0,60178.0,0.3608]
[1726604420793,0.3608,60188.0,60178.0,0.47010797]
[1726604421197,0.19,60179.0,60178.0,0.47010797]
[1726604423207,0.00249254,60183.0,60178.0,1.56862797]
[1726604423508,0.00249254,60183.0,60182.0,0.08306]
[1726604423797,0.00249254,60183.0,60179.0,0.323]
[1726604424095,0.19,60182.0,60179.0,0.10930797]
[1726604425499,0.00649254,60183.0,60181.0,0.083061]
[1726604425688,0.00649254,60183.0,60182.0,0.08306]
[1726604426091,0.00249254,60183.0,60182.0,0.19236797]
[1726604426798,0.00649254,60183.0,60182.0,0.19236797]
[1726604427105,0.01133789,60183.0,60182.0,0.10930797]
[1726604428404,0.01133789,60183.0,60182.0,0.19236797]
[1726604428697,0.01133789,60183.0,60178.0,0.3608]
[1726604428698,0.20133789,60183.0,60178.0,0.3608]
[1726604428901,0.20133789,60183.0,60178.0,0.47010797]
[1726604429391,0.20133789,60183.0,60178.0,0.10930797]
[1726604429790,0.00733789,60183.0,60182.0,0.08306]
[1726604430197,0.00733789,60183.0,60182.0,0.19236797]
[1726604430492,0.3208,60195.0,60182.0,1.20778797]
[1726604430693,0.19,60198.0,60195.0,0.083041]
[1726604431097,0.24829972,60196.0,60195.0,0.083041]
[1726604431303,0.24829972,60196.0,60195.0,0.19234897]
[1726604431494,0.00730534,60197.0,60195.0,0.10930797]
[1726604432007,0.00730534,60197.0,60196.0,0.083041]
[1726604432504,0.00730534,60197.0,60196.0,0.19234897]
[1726604433203,0.01030534,60197.0,60196.0,0.19234897]
[1726604433901,0.00930534,60197.0,60196.0,0.19234897]
[1726604434899,0.00930534,60197.0,60196.0,0.79234897]
[1726604434900,0.00449206,60197.0,60196.0,0.79234897]
[1726604435096,0.3608,60217.0,60209.0,0.083023]
[1726604435415,0.36578751,60210.0,60209.0,0.083023]
[1726604436211,0.19,60214.0,60209.0,0.083023]
[1726604436508,0.19,60214.0,60210.0,0.083021]
[1726604437596,0.00549161,60213.0,60210.0,0.083021]
[1726604437795,0.00549161,60213.0,60211.0,0.08302]
[1726604438214,0.01036517,60213.0,60211.0,0.08302]
[1726604439507,0.00736517,60213.0,60211.0,0.08402]
[1726604441714,0.00736517,60213.0,60212.0,0.083019]
[1726604443111,0.00487356,60213.0,60212.0,0.083019]
[1726604443420,0.3167,60221.0,60212.0,0.49824]
[1726604443612,0.001,60213.0,60212.0,0.084019]
[1726604444411,0.001,60213.0,60212.0,0.001]
[1726604444611,0.001,60213.0,60185.0,0.083055]
[1726604444612,0.083025,60208.0,60194.0,0.3608]
[1726604444914,0.56575697,60207.0,60194.0,0.3608]
[1726604445108,0.19,60204.0,60194.0,0.3608]
[1726604445312,0.5508,60204.0,60194.0,0.3608]
[1726604445610,0.24905697,60204.0,60199.0,0.083037]
[1726604445814,0.19,60205.0,60194.0,0.3608]
[1726604446211,0.32146261,60207.0,60194.0,0.3608]
[1726604446212,0.3608,60204.0,60194.0,0.3608]
[1726604446405,0.80049225,60204.0,60194.0,0.3608]
[1726604446604,0.083033,60202.0,60194.0,0.3608]
[1726604446812,0.19,60195.0,60194.0,0.3608]
[1726604447013,0.19,60195.0,60181.0,0.3608]
[1726604447310,0.19,60191.0,60190.0,0.36329212]
[1726604448320,0.19,60191.0,60190.0,0.36429212]
[1726604449917,0.193,60191.0,60190.0,0.36429212]
[1726604450809,0.19,60191.0,60190.0,0.36329212]
[1726604451113,0.193,60191.0,60190.0,0.36429212]
[1726604451314,0.19789995,60191.0,60190.0,0.36429212]
[1726604452219,0.00789995,60191.0,60190.0,0.36429212]
[1726604452413,0.00789995,60191.0,60190.0,0.44734112]
[1726604453312,0.19789995,60191.0,60190.0,0.36429212]
[1726604456917,0.19789995,60191.0,60190.0,0.36329212]
[1726604457418,0.19489995,60191.0,60190.0,0.36329212]
[1726604457618,0.19789995,60191.0,60190.0,0.36329212]
[1726604458826,0.00789995,60191.0,60190.0,0.36329212]
[1726604460112,0.00489995,60191.0,60190.0,0.36329212]
[1726604460421,0.002,60191.0,60190.0,0.36329212]
[1726604460615,0.19249203,60195.0,60190.0,0.36329212]
[1726604460810,0.003,60191.0,60190.0,0.44634112]
[1726604461121,0.003,60191.0,60190.0,0.63634112]
[1726604461319,0.3214,60203.0,60199.0,0.083036]
[1726604461724,0.3214,60203.0,60200.0,0.083035]
[1726604463223,0.32607313,60203.0,60200.0,0.083035]
[1726604464014,0.32907313,60203.0,60200.0,0.084035]
[1726604465015,0.00767313,60203.0,60201.0,0.083033]
[1726604465217,0.00767313,60203.0,60202.0,0.083032]
[1726604466425,0.00467313,60203.0,60202.0,0.083032]
[1726604466620,0.003,60203.0,60202.0,0.084032]
[1726604468319,0.003,60203.0,60202.0,0.582352]
[1726604468830,0.003,60203.0,60202.0,0.084032]
[1726604469823,0.193,60203.0,60202.0,0.084032]
[1726604470026,0.193,60203.0,60202.0,0.001]
[1726604470627,0.276031,60203.0,60202.0,0.001]
[1726604470827,0.086031,60203.0,60202.0,0.001]
[1726604471027,0.276031,60203.0,60202.0,0.001]
[1726604471632,0.193,60203.0,60202.0,0.001]
[1726604472728,0.4379,60203.0,60202.0,0.001]
[1726604473327,0.520931,60203.0,60202.0,0.001]
[1726604474430,0.4379,60203.0,60202.0,0.001]
[1726604474627,0.003,60203.0,60202.0,0.001]
[1726604474827,0.193,60203.0,60202.0,0.001]
[1726604477833,0.003,60203.0,60202.0,0.001]
[1726604479547,0.193,60203.0,60202.0,0.001]